[Event "Titled Tuesday Blitz November 14 Early 2023"]
[White "Hayrapetyan, Hovik"]
[Black "Lymar, Vladislav"]
[WhiteFideId "13302639"]
[BlackFideId "14162180"]
[WhiteElo "2730"]
[BlackElo "2584"]
[Result "1-0"]
[Round "11"]
[TimeControl "180+1"]
[Date "2023.11.14"]
[WhiteClock "0:00:05"]
[BlackClock "0:00:00"]
[Board "45"]

1. d4 {[%clk 0:03:00]}  d6 {[%clk 0:02:54]} 2. Nf3 {[%clk 0:03:00]}  Nf6 {[%clk 0:02:53]} 3. c4 {[%clk 0:03:00]}  Nbd7 {[%clk 0:02:53]} 4. g3 {[%clk 0:02:59]}  e5 {[%clk 0:02:53]} 5. Bg2 {[%clk 0:02:59]}  Be7 {[%clk 0:02:54]} 6. O-O {[%clk 0:02:59]}  O-O {[%clk 0:02:54]} 7. Nc3 {[%clk 0:03:00]}  c6 {[%clk 0:02:55]} 8. e4 {[%clk 0:03:00]}  Qe8 {[%clk 0:02:54]} 9. Re1 {[%clk 0:02:57]}  Bd8 {[%clk 0:02:53]} 10. h3 {[%clk 0:02:56]}  Ba5 {[%clk 0:02:54]} 11. Qc2 {[%clk 0:02:43]}  Qe7 {[%clk 0:02:47]} 12. Be3 {[%clk 0:02:37]}  Re8 {[%clk 0:02:44]} 13. Rad1 {[%clk 0:02:33]}  Bxc3 {[%clk 0:02:32]} 14. bxc3 {[%clk 0:02:31]}  exd4 {[%clk 0:02:27]} 15. cxd4 {[%clk 0:02:13]}  Qxe4 {[%clk 0:02:22]} 16. Qb3 {[%clk 0:02:12]}  Qe7 {[%clk 0:02:05]} 17. Bf4 {[%clk 0:02:06]}  Qf8 {[%clk 0:02:03]} 18. Qa3 {[%clk 0:02:06]}  Rxe1+ {[%clk 0:01:09]} 19. Rxe1 {[%clk 0:02:07]}  c5 {[%clk 0:01:05]} 20. dxc5 {[%clk 0:01:52]}  Nxc5 {[%clk 0:00:57]} 21. Nd4 {[%clk 0:01:52]}  Bd7 {[%clk 0:00:52]} 22. Nb3 {[%clk 0:01:39]}  Bc6 {[%clk 0:00:46]} 23. Nxc5 {[%clk 0:01:20]}  Bxg2 {[%clk 0:00:42]} 24. Ne6 {[%clk 0:01:15]}  fxe6 {[%clk 0:00:39]} 25. Bxd6 {[%clk 0:01:11]}  Qe8 {[%clk 0:00:35]} 26. Kxg2 {[%clk 0:01:09]}  Qc6+ {[%clk 0:00:35]} 27. Kg1 {[%clk 0:01:07]}  Qxc4 {[%clk 0:00:33]} 28. Be5 {[%clk 0:01:04]}  Nd5 {[%clk 0:00:30]} 29. Qd6 {[%clk 0:00:59]}  Qc6 {[%clk 0:00:30]} 30. Qa3 {[%clk 0:00:49]}  a6 {[%clk 0:00:26]} 31. Rc1 {[%clk 0:00:44]}  Qd7 {[%clk 0:00:26]} 32. Rc4 {[%clk 0:00:41]}  Rf8 {[%clk 0:00:23]} 33. Rg4 {[%clk 0:00:41]}  g6 {[%clk 0:00:23]} 34. Ba1 {[%clk 0:00:37]}  Qb5 {[%clk 0:00:09]} 35. Qc1 {[%clk 0:00:17]}  Qe2 {[%clk 0:00:09]} 36. Qb2 {[%clk 0:00:09]}  Qxb2 {[%clk 0:00:05]} 37. Bxb2 {[%clk 0:00:10]}  Rc8 {[%clk 0:00:05]} 38. Be5 {[%clk 0:00:10]}  Rc2 {[%clk 0:00:04]} 39. a4 {[%clk 0:00:10]}  b5 {[%clk 0:00:04]} 40. axb5 {[%clk 0:00:09]}  axb5 {[%clk 0:00:05]} 41. Bd6 {[%clk 0:00:07]}  Rc6 {[%clk 0:00:03]} 42. Ba3 {[%clk 0:00:07]}  Rc3 {[%clk 0:00:03]} 43. Bd6 {[%clk 0:00:06]}  Rc4 {[%clk 0:00:02]} 44. Rg5 {[%clk 0:00:04]}  b4 {[%clk 0:00:01]} 45. Re5 {[%clk 0:00:04]}  Kf7 {[%clk 0:00:00]} 46. Re1 {[%clk 0:00:05]} 1-0


[Site "https://www.chess.com"]

[Event "Titled Tuesday Blitz November 14 Early 2023"]
[White "Sharapov, Evgeny"]
[Black "Halkias, Stelios"]
[WhiteFideId "14103133"]
[BlackFideId "4201809"]
[WhiteElo "2573"]
[BlackElo "2725"]
[Result "1-0"]
[Round "11"]
[TimeControl "180+1"]
[Date "2023.11.14"]
[WhiteClock "0:01:11"]
[BlackClock "0:00:17"]
[Board "47"]

1. e4 {[%clk 0:02:59]}  c5 {[%clk 0:02:59]} 2. Nf3 {[%clk 0:02:58]}  d6 {[%clk 0:03:00]} 3. d4 {[%clk 0:02:58]}  cxd4 {[%clk 0:03:00]} 4. Nxd4 {[%clk 0:02:59]}  Nf6 {[%clk 0:03:00]} 5. f3 {[%clk 0:02:59]}  e5 {[%clk 0:02:57]} 6. Nb3 {[%clk 0:02:59]}  a5 {[%clk 0:02:57]} 7. Bb5+ {[%clk 0:02:58]}  Nc6 {[%clk 0:02:54]} 8. Nc3 {[%clk 0:02:57]}  Be6 {[%clk 0:02:52]} 9. Be3 {[%clk 0:02:56]}  Be7 {[%clk 0:02:46]} 10. Qd2 {[%clk 0:02:54]}  O-O {[%clk 0:02:44]} 11. Rd1 {[%clk 0:02:53]}  a4 {[%clk 0:02:35]} 12. Bxa4 {[%clk 0:02:51]}  Qc8 {[%clk 0:01:36]} 13. Bb5 {[%clk 0:02:42]}  Nb4 {[%clk 0:01:31]} 14. a3 {[%clk 0:02:38]}  d5 {[%clk 0:01:31]} 15. axb4 {[%clk 0:02:28]}  d4 {[%clk 0:01:31]} 16. Nxd4 {[%clk 0:02:23]}  exd4 {[%clk 0:01:31]} 17. Bxd4 {[%clk 0:02:23]}  Rd8 {[%clk 0:01:31]} 18. O-O {[%clk 0:02:06]}  Bxb4 {[%clk 0:01:28]} 19. Qe3 {[%clk 0:02:06]}  Rxd4 {[%clk 0:01:20]} 20. Rxd4 {[%clk 0:02:06]}  Bc5 {[%clk 0:01:21]} 21. Rfd1 {[%clk 0:02:05]}  h6 {[%clk 0:01:20]} 22. Kh1 {[%clk 0:01:56]}  Qc7 {[%clk 0:01:11]} 23. Qd2 {[%clk 0:01:52]}  Bxd4 {[%clk 0:00:54]} 24. Qxd4 {[%clk 0:01:51]}  Qf4 {[%clk 0:00:52]} 25. e5 {[%clk 0:01:43]}  Nh5 {[%clk 0:00:52]} 26. Qxf4 {[%clk 0:01:41]}  Nxf4 {[%clk 0:00:53]} 27. g3 {[%clk 0:01:30]}  Ng6 {[%clk 0:00:46]} 28. f4 {[%clk 0:01:31]}  Ne7 {[%clk 0:00:45]} 29. Kg1 {[%clk 0:01:30]}  Nf5 {[%clk 0:00:42]} 30. Kf2 {[%clk 0:01:29]}  Rc8 {[%clk 0:00:35]} 31. Bd7 {[%clk 0:01:24]}  Rc5 {[%clk 0:00:35]} 32. Bxe6 {[%clk 0:01:23]}  fxe6 {[%clk 0:00:36]} 33. Rd2 {[%clk 0:01:16]}  b5 {[%clk 0:00:35]} 34. Ne4 {[%clk 0:01:14]}  Rc4 {[%clk 0:00:35]} 35. Nd6 {[%clk 0:01:14]}  Rc5 {[%clk 0:00:34]} 36. Nxf5 {[%clk 0:01:14]}  exf5 {[%clk 0:00:34]} 37. c3 {[%clk 0:01:14]}  Kf8 {[%clk 0:00:33]} 38. Ke3 {[%clk 0:01:14]}  Rc4 {[%clk 0:00:31]} 39. Rd4 {[%clk 0:01:14]}  Rc7 {[%clk 0:00:30]} 40. Rb4 {[%clk 0:01:11]}  Rc5 {[%clk 0:00:19]} 41. Kd4 {[%clk 0:01:11]}  Rc8 {[%clk 0:00:17]} 42. Rxb5 {[%clk 0:01:11]} 1-0


[Site "https://www.chess.com"]

[Event "Titled Tuesday Blitz November 14 Early 2023"]
[White "Hua, Lefong"]
[Black "ChainedDowntohell"]
[WhiteFideId "2602253"]
[WhiteElo "2711"]
[BlackElo "2567"]
[Result "0-1"]
[Round "11"]
[TimeControl "180+1"]
[Date "2023.11.14"]
[WhiteClock "0:00:24"]
[BlackClock "0:00:34"]
[Board "49"]

1. d4 {[%clk 0:03:00]}  Nf6 {[%clk 0:02:58]} 2. c4 {[%clk 0:03:01]}  e6 {[%clk 0:02:57]} 3. Nc3 {[%clk 0:03:01]}  Bb4 {[%clk 0:02:56]} 4. f3 {[%clk 0:03:01]}  d5 {[%clk 0:02:24]} 5. a3 {[%clk 0:03:01]}  Be7 {[%clk 0:02:23]} 6. e4 {[%clk 0:03:00]}  dxc4 {[%clk 0:02:22]} 7. Bxc4 {[%clk 0:02:59]}  c5 {[%clk 0:02:22]} 8. Nge2 {[%clk 0:02:50]}  cxd4 {[%clk 0:02:14]} 9. Nxd4 {[%clk 0:02:51]}  Qc7 {[%clk 0:02:10]} 10. Bb5+ {[%clk 0:02:43]}  Bd7 {[%clk 0:02:06]} 11. Be3 {[%clk 0:02:41]}  Nc6 {[%clk 0:01:48]} 12. O-O {[%clk 0:02:33]}  Bc5 {[%clk 0:01:43]} 13. Nf5 {[%clk 0:02:00]}  Qb6 {[%clk 0:01:34]} 14. Nxg7+ {[%clk 0:01:24]}  Kf8 {[%clk 0:01:31]} 15. Nxe6+ {[%clk 0:01:20]}  Bxe6 {[%clk 0:01:29]} 16. Bxc5+ {[%clk 0:01:18]}  Qxc5+ {[%clk 0:01:30]} 17. Kh1 {[%clk 0:01:18]}  Nd4 {[%clk 0:01:23]} 18. Bd3 {[%clk 0:01:09]}  Rd8 {[%clk 0:01:21]} 19. Qd2 {[%clk 0:01:00]}  h6 {[%clk 0:01:09]} 20. Qf2 {[%clk 0:00:51]}  Nb3 {[%clk 0:01:02]} 21. Qxc5+ {[%clk 0:00:51]}  Nxc5 {[%clk 0:01:03]} 22. Be2 {[%clk 0:00:49]}  Ke7 {[%clk 0:00:56]} 23. b4 {[%clk 0:00:45]}  Nb3 {[%clk 0:00:54]} 24. Rae1 {[%clk 0:00:42]}  Rd2 {[%clk 0:00:51]} 25. f4 {[%clk 0:00:40]}  Rc8 {[%clk 0:00:47]} 26. Nd5+ {[%clk 0:00:34]}  Bxd5 {[%clk 0:00:40]} 27. exd5 {[%clk 0:00:35]}  Kd6 {[%clk 0:00:39]} 28. Bf3 {[%clk 0:00:35]}  Nd4 {[%clk 0:00:36]} 29. h4 {[%clk 0:00:24]}  Rcc2 {[%clk 0:00:34]} 0-1


[Site "https://www.chess.com"]

[Event "Titled Tuesday Blitz November 14 Early 2023"]
[White "Bettalli, Francesco"]
[Black "Ilkhomi, Jaloliddin"]
[WhiteFideId "2816453"]
[BlackFideId "14700948"]
[WhiteElo "2555"]
[BlackElo "2707"]
[Result "1-0"]
[Round "11"]
[TimeControl "180+1"]
[Date "2023.11.14"]
[WhiteClock "0:01:00"]
[BlackClock "0:00:00"]
[Board "50"]

1. e4 {[%clk 0:03:00]}  e6 {[%clk 0:02:59]} 2. Nf3 {[%clk 0:02:56]}  d5 {[%clk 0:02:59]} 3. e5 {[%clk 0:02:56]}  c5 {[%clk 0:02:58]} 4. a3 {[%clk 0:02:57]}  Nc6 {[%clk 0:02:57]} 5. b4 {[%clk 0:02:57]}  cxb4 {[%clk 0:02:57]} 6. axb4 {[%clk 0:02:58]}  Bxb4 {[%clk 0:02:57]} 7. c3 {[%clk 0:02:58]}  Bf8 {[%clk 0:02:57]} 8. d4 {[%clk 0:02:59]}  Nge7 {[%clk 0:02:57]} 9. Bd3 {[%clk 0:02:59]}  Nf5 {[%clk 0:02:57]} 10. O-O {[%clk 0:02:54]}  Be7 {[%clk 0:02:57]} 11. g4 {[%clk 0:02:53]}  Nh4 {[%clk 0:02:57]} 12. Nxh4 {[%clk 0:02:53]}  Bxh4 {[%clk 0:02:58]} 13. f4 {[%clk 0:02:54]}  h6 {[%clk 0:02:35]} 14. Na3 {[%clk 0:02:39]}  Bd7 {[%clk 0:02:09]} 15. Nb5 {[%clk 0:02:38]}  Be7 {[%clk 0:02:10]} 16. Ba3 {[%clk 0:02:38]}  Bxa3 {[%clk 0:02:06]} 17. Rxa3 {[%clk 0:02:39]}  O-O {[%clk 0:02:04]} 18. Nd6 {[%clk 0:02:38]}  Qe7 {[%clk 0:01:59]} 19. g5 {[%clk 0:02:33]}  hxg5 {[%clk 0:01:56]} 20. Qh5 {[%clk 0:02:25]}  g6 {[%clk 0:01:56]} 21. Qh6 {[%clk 0:02:22]}  f6 {[%clk 0:01:38]} 22. fxg5 {[%clk 0:02:16]}  fxe5 {[%clk 0:01:00]} 23. Qxg6+ {[%clk 0:02:15]}  Qg7 {[%clk 0:01:01]} 24. Rf6 {[%clk 0:02:08]}  exd4 {[%clk 0:00:42]} 25. Qxg7+ {[%clk 0:01:58]}  Kxg7 {[%clk 0:00:42]} 26. Rg6+ {[%clk 0:01:59]}  Kh8 {[%clk 0:00:43]} 27. Rh6+ {[%clk 0:02:00]}  Kg8 {[%clk 0:00:41]} 28. cxd4 {[%clk 0:01:54]}  Nxd4 {[%clk 0:00:37]} 29. Rg6+ {[%clk 0:01:54]}  Kh8 {[%clk 0:00:36]} 30. Bf5 {[%clk 0:01:28]}  Ne2+ {[%clk 0:00:20]} 31. Kh1 {[%clk 0:01:21]}  Nf4 {[%clk 0:00:20]} 32. Rh6+ {[%clk 0:01:17]}  Kg8 {[%clk 0:00:21]} 33. Rf3 {[%clk 0:01:10]}  exf5 {[%clk 0:00:02]} 34. Rxf4 {[%clk 0:01:10]}  Kg7 {[%clk 0:00:02]} 35. Nxb7 {[%clk 0:00:59]}  Rh8 {[%clk 0:00:02]} 36. Nc5 {[%clk 0:00:59]}  Rxh6 {[%clk 0:00:02]} 37. gxh6+ {[%clk 0:01:00]}  Kxh6 {[%clk 0:00:02]} 38. Nxd7 {[%clk 0:01:00]}  Kg5 {[%clk 0:00:03]} 39. Rf2 {[%clk 0:00:58]}  Rd8 {[%clk 0:00:04]} 40. Ne5 {[%clk 0:00:58]}  d4 {[%clk 0:00:04]} 41. Nf7+ {[%clk 0:00:59]}  Kf6 {[%clk 0:00:03]} 42. Nxd8 {[%clk 0:01:00]}  Ke5 {[%clk 0:00:04]} 43. Nc6+ {[%clk 0:01:00]}  Ke4 {[%clk 0:00:05]} 44. Nxd4 {[%clk 0:01:00]}  f4 {[%clk 0:00:04]} 45. Ne6 {[%clk 0:01:00]}  f3 {[%clk 0:00:00]} 46. Ng5+ {[%clk 0:01:00]} 1-0


[Site "https://www.chess.com"]

[Event "Titled Tuesday Blitz November 14 Early 2023"]
[White "Omariev, Maksim"]
[Black "Lukovic, Vladimir"]
[WhiteFideId "4193423"]
[BlackFideId "942952"]
[WhiteElo "2512"]
[BlackElo "2687"]
[Result "0-1"]
[Round "11"]
[TimeControl "180+1"]
[Date "2023.11.14"]
[WhiteClock "0:00:00"]
[BlackClock "0:00:27"]
[Board "53"]

1. e4 {[%clk 0:03:00]}  e6 {[%clk 0:02:56]} 2. d4 {[%clk 0:03:00]}  d5 {[%clk 0:02:56]} 3. Nc3 {[%clk 0:03:01]}  Bb4 {[%clk 0:02:55]} 4. exd5 {[%clk 0:03:01]}  exd5 {[%clk 0:02:55]} 5. Bd3 {[%clk 0:03:02]}  Nc6 {[%clk 0:02:52]} 6. a3 {[%clk 0:03:01]}  Bxc3+ {[%clk 0:02:51]} 7. bxc3 {[%clk 0:03:01]}  Nge7 {[%clk 0:02:50]} 8. Qf3 {[%clk 0:03:01]}  Be6 {[%clk 0:02:49]} 9. Ne2 {[%clk 0:02:55]}  Qd7 {[%clk 0:02:49]} 10. Ng3 {[%clk 0:02:51]}  Bg4 {[%clk 0:02:37]} 11. Qf4 {[%clk 0:02:51]}  h5 {[%clk 0:02:33]} 12. h3 {[%clk 0:02:50]}  Be6 {[%clk 0:02:33]} 13. Rb1 {[%clk 0:02:39]}  O-O-O {[%clk 0:02:32]} 14. O-O {[%clk 0:02:20]}  h4 {[%clk 0:02:31]} 15. Ne2 {[%clk 0:02:21]}  g5 {[%clk 0:02:29]} 16. Qf6 {[%clk 0:02:11]}  g4 {[%clk 0:02:24]} 17. hxg4 {[%clk 0:02:07]}  Bxg4 {[%clk 0:02:21]} 18. Kh2 {[%clk 0:00:45]}  Nf5 {[%clk 0:01:50]} 19. Bg5 {[%clk 0:00:35]}  Rde8 {[%clk 0:01:26]} 20. f3 {[%clk 0:00:28]}  Ng3 {[%clk 0:01:05]} 21. fxg4 {[%clk 0:00:20]}  Qxg4 {[%clk 0:01:00]} 22. Ng1 {[%clk 0:00:18]}  Nxf1+ {[%clk 0:00:56]} 23. Rxf1 {[%clk 0:00:18]}  Kb8 {[%clk 0:00:57]} 24. Bf5 {[%clk 0:00:12]}  Qg3+ {[%clk 0:00:56]} 25. Kh1 {[%clk 0:00:13]}  Rhg8 {[%clk 0:00:47]} 26. Nh3 {[%clk 0:00:12]}  Re1 {[%clk 0:00:46]} 27. Bd3 {[%clk 0:00:11]}  Rxf1+ {[%clk 0:00:43]} 28. Qxf1 {[%clk 0:00:11]}  Rxg5 {[%clk 0:00:40]} 29. Nxg5 {[%clk 0:00:12]}  Qxg5 {[%clk 0:00:40]} 30. Qxf7 {[%clk 0:00:12]}  a6 {[%clk 0:00:40]} 31. Qf8+ {[%clk 0:00:03]}  Nd8 {[%clk 0:00:35]} 32. Qe8 {[%clk 0:00:02]}  Ka7 {[%clk 0:00:34]} 33. Qd7 {[%clk 0:00:02]}  Kb6 {[%clk 0:00:31]} 34. Qc8 {[%clk 0:00:02]}  Nc6 {[%clk 0:00:29]} 35. Qd7 {[%clk 0:00:02]}  Qc1+ {[%clk 0:00:26]} 36. Kh2 {[%clk 0:00:02]}  Qxa3 {[%clk 0:00:26]} 37. Qxd5 {[%clk 0:00:00]}  Qxc3 {[%clk 0:00:27]} 0-1


[Site "https://www.chess.com"]

[Event "Titled Tuesday Blitz November 14 Early 2023"]
[White "Ovetchkin, Roman"]
[Black "Mestnikov, Aisen"]
[WhiteFideId "4119991"]
[BlackFideId "34130117"]
[WhiteElo "2671"]
[BlackElo "2440"]
[Result "1-0"]
[Round "11"]
[TimeControl "180+1"]
[Date "2023.11.14"]
[WhiteClock "0:00:19"]
[BlackClock "0:00:01"]
[Board "55"]

1. d4 {[%clk 0:03:00]}  Nf6 {[%clk 0:02:59]} 2. c4 {[%clk 0:03:00]}  g6 {[%clk 0:03:00]} 3. Nc3 {[%clk 0:03:00]}  d5 {[%clk 0:03:00]} 4. cxd5 {[%clk 0:02:58]}  Nxd5 {[%clk 0:03:01]} 5. e4 {[%clk 0:02:58]}  Nxc3 {[%clk 0:03:01]} 6. bxc3 {[%clk 0:02:59]}  Bg7 {[%clk 0:03:01]} 7. Nf3 {[%clk 0:02:59]}  c5 {[%clk 0:03:01]} 8. Bb5+ {[%clk 0:02:57]}  Bd7 {[%clk 0:02:58]} 9. Bxd7+ {[%clk 0:02:38]}  Nxd7 {[%clk 0:02:57]} 10. O-O {[%clk 0:02:37]}  O-O {[%clk 0:02:57]} 11. Qe2 {[%clk 0:02:33]}  Qa5 {[%clk 0:02:53]} 12. Rb1 {[%clk 0:02:30]}  b6 {[%clk 0:02:47]} 13. Rd1 {[%clk 0:02:11]}  Qxc3 {[%clk 0:02:20]} 14. d5 {[%clk 0:02:10]}  Ne5 {[%clk 0:02:04]} 15. Bb2 {[%clk 0:01:28]}  Qc4 {[%clk 0:01:58]} 16. Qe3 {[%clk 0:01:15]}  Nxf3+ {[%clk 0:01:07]} 17. gxf3 {[%clk 0:00:59]}  Qxa2 {[%clk 0:01:07]} 18. Bxg7 {[%clk 0:00:59]}  Kxg7 {[%clk 0:01:07]} 19. e5 {[%clk 0:00:58]}  Rfd8 {[%clk 0:01:07]} 20. Qe4 {[%clk 0:00:56]}  Qa6 {[%clk 0:00:31]} 21. d6 {[%clk 0:00:49]}  exd6 {[%clk 0:00:30]} 22. exd6 {[%clk 0:00:49]}  Qc8 {[%clk 0:00:23]} 23. d7 {[%clk 0:00:36]}  Qc7 {[%clk 0:00:18]} 24. Rd5 {[%clk 0:00:36]}  Rab8 {[%clk 0:00:15]} 25. Rbd1 {[%clk 0:00:35]}  a5 {[%clk 0:00:11]} 26. h4 {[%clk 0:00:34]}  h5 {[%clk 0:00:10]} 27. f4 {[%clk 0:00:34]}  Rb7 {[%clk 0:00:05]} 28. Rd6 {[%clk 0:00:32]}  Rbb8 {[%clk 0:00:02]} 29. f5 {[%clk 0:00:31]}  Qb7 {[%clk 0:00:02]} 30. Qe5+ {[%clk 0:00:30]}  Kg8 {[%clk 0:00:02]} 31. fxg6 {[%clk 0:00:21]}  Qf3 {[%clk 0:00:02]} 32. R1d3 {[%clk 0:00:21]}  Qg4+ {[%clk 0:00:03]} 33. Rg3 {[%clk 0:00:21]}  f6 {[%clk 0:00:01]} 34. Qe7 {[%clk 0:00:19]}  Qxh4 {[%clk 0:00:01]} 35. Qf7+ {[%clk 0:00:18]}  Kh8 {[%clk 0:00:01]} 36. Qh7# {[%clk 0:00:19]} 1-0


[Site "https://www.chess.com"]

[Event "Titled Tuesday Blitz November 14 Early 2023"]
[White "Rustemov, Alexander"]
[Black "UNSTOPPABLE_LEGEND"]
[WhiteFideId "4119002"]
[WhiteElo "2876"]
[BlackElo "2487"]
[Result "0-1"]
[Round "11"]
[TimeControl "180+1"]
[Date "2023.11.14"]
[WhiteClock "0:00:09"]
[BlackClock "0:00:18"]
[Board "56"]

1. d4 {[%clk 0:03:00]}  Nf6 {[%clk 0:02:59]} 2. Bg5 {[%clk 0:03:00]}  d5 {[%clk 0:02:58]} 3. Nd2 {[%clk 0:02:59]}  c5 {[%clk 0:02:58]} 4. Bxf6 {[%clk 0:02:59]}  gxf6 {[%clk 0:02:59]} 5. dxc5 {[%clk 0:02:59]}  e5 {[%clk 0:02:57]} 6. b4 {[%clk 0:02:50]}  a5 {[%clk 0:02:55]} 7. a3 {[%clk 0:02:50]}  Nc6 {[%clk 0:02:51]} 8. Rb1 {[%clk 0:02:43]}  Rg8 {[%clk 0:02:46]} 9. e3 {[%clk 0:02:37]}  Be6 {[%clk 0:02:31]} 10. Ngf3 {[%clk 0:02:35]}  e4 {[%clk 0:02:22]} 11. Nh4 {[%clk 0:02:27]}  f5 {[%clk 0:02:20]} 12. g3 {[%clk 0:02:26]}  d4 {[%clk 0:02:18]} 13. Bb5 {[%clk 0:02:12]}  dxe3 {[%clk 0:02:12]} 14. fxe3 {[%clk 0:02:13]}  Bh6 {[%clk 0:02:12]} 15. Qe2 {[%clk 0:02:11]}  axb4 {[%clk 0:02:09]} 16. axb4 {[%clk 0:02:11]}  Ra2 {[%clk 0:02:10]} 17. Rc1 {[%clk 0:01:53]}  Kf8 {[%clk 0:01:12]} 18. Ng2 {[%clk 0:01:51]}  Nxb4 {[%clk 0:01:10]} 19. O-O {[%clk 0:01:49]}  Nxc2 {[%clk 0:01:07]} 20. Bc4 {[%clk 0:01:46]}  Nd4 {[%clk 0:00:39]} 21. Qh5 {[%clk 0:01:13]}  Bxe3+ {[%clk 0:00:18]} 22. Nxe3 {[%clk 0:01:11]}  Rxd2 {[%clk 0:00:19]} 23. Qh6+ {[%clk 0:01:05]}  Ke7 {[%clk 0:00:17]} 24. Nd5+ {[%clk 0:01:00]}  Bxd5 {[%clk 0:00:17]} 25. Qxd2 {[%clk 0:01:01]}  Bxc4 {[%clk 0:00:16]} 26. Qb4 {[%clk 0:00:54]}  Ne2+ {[%clk 0:00:14]} 27. Kg2 {[%clk 0:00:47]}  Nxc1 {[%clk 0:00:12]} 28. Rxc1 {[%clk 0:00:41]}  Bd5 {[%clk 0:00:11]} 29. c6+ {[%clk 0:00:41]}  Qd6 {[%clk 0:00:12]} 30. Qxb7+ {[%clk 0:00:34]}  Kf6 {[%clk 0:00:10]} 31. Qb2+ {[%clk 0:00:27]}  Qe5 {[%clk 0:00:10]} 32. Qe2 {[%clk 0:00:22]}  f4 {[%clk 0:00:09]} 33. Kg1 {[%clk 0:00:08]}  Qd4+ {[%clk 0:00:08]} 34. Kf1 {[%clk 0:00:08]}  f3 {[%clk 0:00:08]} 35. Qc2 {[%clk 0:00:06]}  e3 {[%clk 0:00:06]} 36. c7 {[%clk 0:00:06]}  e2+ {[%clk 0:00:06]} 37. Ke1 {[%clk 0:00:06]}  Qg1+ {[%clk 0:00:06]} 38. Kd2 {[%clk 0:00:07]}  Qd4+ {[%clk 0:00:07]} 39. Ke1 {[%clk 0:00:07]}  Qg1+ {[%clk 0:00:03]} 40. Kd2 {[%clk 0:00:07]}  Qb6 {[%clk 0:00:04]} 41. Ke1 {[%clk 0:00:07]}  Qa5+ {[%clk 0:00:04]} 42. Kf2 {[%clk 0:00:07]}  Rc8 {[%clk 0:00:04]} 43. Qc5 {[%clk 0:00:06]}  Qxc5+ {[%clk 0:00:03]} 44. Rxc5 {[%clk 0:00:07]}  Ke6 {[%clk 0:00:04]} 45. g4 {[%clk 0:00:07]}  Kd6 {[%clk 0:00:05]} 46. Rc1 {[%clk 0:00:06]}  Rxc7 {[%clk 0:00:05]} 47. Rxc7 {[%clk 0:00:06]}  Kxc7 {[%clk 0:00:06]} 48. h4 {[%clk 0:00:06]}  Kd6 {[%clk 0:00:06]} 49. g5 {[%clk 0:00:07]}  Ke5 {[%clk 0:00:07]} 50. Ke1 {[%clk 0:00:07]}  Kf5 {[%clk 0:00:08]} 51. Kf2 {[%clk 0:00:08]}  Kg6 {[%clk 0:00:08]} 52. Ke1 {[%clk 0:00:08]}  Kh5 {[%clk 0:00:09]} 53. Kf2 {[%clk 0:00:09]}  Kxh4 {[%clk 0:00:10]} 54. Ke1 {[%clk 0:00:10]}  Kxg5 {[%clk 0:00:10]} 55. Kf2 {[%clk 0:00:10]}  Kf4 {[%clk 0:00:11]} 56. Ke1 {[%clk 0:00:10]}  h5 {[%clk 0:00:12]} 57. Kf2 {[%clk 0:00:10]}  h4 {[%clk 0:00:13]} 58. Ke1 {[%clk 0:00:08]}  h3 {[%clk 0:00:13]} 59. Kd2 {[%clk 0:00:08]}  h2 {[%clk 0:00:14]} 60. Kc3 {[%clk 0:00:08]}  e1=Q+ {[%clk 0:00:15]} 61. Kd4 {[%clk 0:00:09]}  Qe4+ {[%clk 0:00:15]} 62. Kc5 {[%clk 0:00:09]}  Qc4+ {[%clk 0:00:16]} 63. Kd6 {[%clk 0:00:09]}  Qc6+ {[%clk 0:00:17]} 64. Ke7 {[%clk 0:00:09]}  Qe6+ {[%clk 0:00:18]} 65. Kf8 {[%clk 0:00:10]}  f5 {[%clk 0:00:18]} 66. Kg7 {[%clk 0:00:10]}  Qe7+ {[%clk 0:00:19]} 67. Kg6 {[%clk 0:00:09]}  Qf7+ {[%clk 0:00:18]} 68. Kh6 {[%clk 0:00:09]}  h1=R# {[%clk 0:00:18]} 0-1


[Site "https://www.chess.com"]

[Event "Titled Tuesday Blitz November 14 Early 2023"]
[White "borocotoajua"]
[Black "Hambleton, Aman"]
[BlackFideId "2606577"]
[WhiteElo "2597"]
[BlackElo "2723"]
[Result "1-0"]
[Round "11"]
[TimeControl "180+1"]
[Date "2023.11.14"]
[WhiteClock "0:00:09"]
[BlackClock "0:00:00"]
[Board "57"]

1. d4 {[%clk 0:03:00]}  e5 {[%clk 0:02:59]} 2. Nf3 {[%clk 0:03:01]}  e4 {[%clk 0:02:59]} 3. Ng1 {[%clk 0:02:52]}  d5 {[%clk 0:02:59]} 4. c4 {[%clk 0:02:51]}  dxc4 {[%clk 0:02:58]} 5. e3 {[%clk 0:02:50]}  Be6 {[%clk 0:02:56]} 6. Nc3 {[%clk 0:02:49]}  Nf6 {[%clk 0:02:54]} 7. Nh3 {[%clk 0:02:49]}  c6 {[%clk 0:02:50]} 8. Nf4 {[%clk 0:02:42]}  Bd5 {[%clk 0:02:50]} 9. g4 {[%clk 0:02:41]}  h6 {[%clk 0:02:41]} 10. h4 {[%clk 0:02:40]}  Bd6 {[%clk 0:02:33]} 11. Rg1 {[%clk 0:02:37]}  Bxf4 {[%clk 0:02:00]} 12. exf4 {[%clk 0:02:38]}  Qe7 {[%clk 0:01:52]} 13. f5 {[%clk 0:02:33]}  Na6 {[%clk 0:01:16]} 14. a3 {[%clk 0:02:29]}  Nc7 {[%clk 0:01:10]} 15. Bf4 {[%clk 0:02:27]}  O-O-O {[%clk 0:01:10]} 16. Qa4 {[%clk 0:02:21]}  a6 {[%clk 0:00:57]} 17. Qa5 {[%clk 0:02:16]}  Nfe8 {[%clk 0:00:25]} 18. Qb6 {[%clk 0:02:09]}  Nd6 {[%clk 0:00:24]} 19. Na4 {[%clk 0:02:03]}  Ncb5 {[%clk 0:00:13]} 20. Bh3 {[%clk 0:01:33]}  f6 {[%clk 0:00:05]} 21. Qa5 {[%clk 0:01:15]}  Qc7 {[%clk 0:00:05]} 22. Qb4 {[%clk 0:01:14]}  b6 {[%clk 0:00:02]} 23. Rc1 {[%clk 0:01:05]}  a5 {[%clk 0:00:02]} 24. Qd2 {[%clk 0:01:05]}  Kb7 {[%clk 0:00:02]} 25. Bf1 {[%clk 0:00:56]}  Rhe8 {[%clk 0:00:02]} 26. b3 {[%clk 0:00:55]}  c3 {[%clk 0:00:01]} 27. Nxc3 {[%clk 0:00:51]}  Nxc3 {[%clk 0:00:02]} 28. Rxc3 {[%clk 0:00:52]}  Qd7 {[%clk 0:00:02]} 29. Qe2 {[%clk 0:00:47]}  Ra8 {[%clk 0:00:01]} 30. Qe3 {[%clk 0:00:41]}  a4 {[%clk 0:00:01]} 31. b4 {[%clk 0:00:41]}  b5 {[%clk 0:00:02]} 32. Rc5 {[%clk 0:00:34]}  Nc4 {[%clk 0:00:01]} 33. Qc3 {[%clk 0:00:32]}  e3 {[%clk 0:00:01]} 34. fxe3 {[%clk 0:00:32]}  Re7 {[%clk 0:00:01]} 35. Kf2 {[%clk 0:00:17]}  Rae8 {[%clk 0:00:02]} 36. Rg3 {[%clk 0:00:18]}  h5 {[%clk 0:00:02]} 37. Bg2 {[%clk 0:00:11]}  Bxg2 {[%clk 0:00:02]} 38. Rxg2 {[%clk 0:00:12]}  hxg4 {[%clk 0:00:02]} 39. d5 {[%clk 0:00:12]}  cxd5 {[%clk 0:00:03]} 40. Rc7+ {[%clk 0:00:13]}  Qxc7 {[%clk 0:00:03]} 41. Bxc7 {[%clk 0:00:14]}  Rxc7 {[%clk 0:00:03]} 42. Qd4 {[%clk 0:00:13]}  Re4 {[%clk 0:00:03]} 43. Qxd5+ {[%clk 0:00:13]}  Kb8 {[%clk 0:00:03]} 44. Qxe4 {[%clk 0:00:14]}  Ne5 {[%clk 0:00:03]} 45. Rxg4 {[%clk 0:00:11]}  Rc4 {[%clk 0:00:03]} 46. Qxe5+ {[%clk 0:00:09]}  fxe5 {[%clk 0:00:03]} 47. Rxc4 {[%clk 0:00:10]}  bxc4 {[%clk 0:00:04]} 48. e4 {[%clk 0:00:09]}  Kc7 {[%clk 0:00:04]} 49. Ke3 {[%clk 0:00:09]}  Kd6 {[%clk 0:00:04]} 50. Kd2 {[%clk 0:00:09]}  g5 {[%clk 0:00:00]} 51. hxg5 {[%clk 0:00:09]} 1-0


[Site "https://www.chess.com"]